Cogmind - Beta 13 @@@ ROGUE MODE // 2024.05.07 @ 18:13:32 Player: Bace Troncons Result: Destroyed by MV-517(R) with Subdweller Beam Cannon Performance ------------- Evolutions (0) 0 Regions Visited (2) 400 Robots Destroyed (17) 85 Value Destroyed (369) 369 Prototype IDs (5) 100 Alien Tech Used (0) 0 Bonus (0) 0 TOTAL SCORE: 954 Bonus ------- None Cogmind --------- Core Integrity 0/250 Matter 300/300 Energy 100/100 System Corruption 2% Temperature Cool (9) Movement Core (200) Ox3 Location -10/Subcaves Parts ------- > --- POWER (1) -------- (None) > --- PROPULSION (2) --- (None) > --- UTILITY (2) ------ Medium Storage Unit > --- WEAPON (2) ------- Mace > --- INVENTORY (10) --- Ion Engine Machine Analyzer Sensor Array Signal Interpreter Terrain Scanner Utility Shielding Heavy Assault Rifle Heavy Assault Rifle Grenade Launcher Multitool Peak State ------------ > --- POWER ------------ Light Ion Engine > --- PROPULSION ------- Light Treads Light Treads > --- UTILITY ---------- Small Storage Unit Utility Shielding > --- WEAPON ----------- Heavy Assault Rifle Heavy Assault Rifle > --- INVENTORY -------- Ion Engine Aluminum Leg Aluminum Leg Assault Rifle Light Assault Rifle Heavy Assault Rifle Heavy Assault Rifle Mace [Rating: 10] Favorites ----------- Power Light Ion Engine Engine Light Ion Engine Propulsion Light Treads Treads Light Treads Utility Structural Scanner Device Structural Scanner Storage Medium Storage Unit Protection Utility Shielding Weapon Heavy Assault Rifle Ballistic Gun Heavy Assault Rifle Special Weapon Multitool Impact Weapon Mace Special Melee Weapon Datajack Build | -11 -10 -10 ------- Run | Yrd Mat Sub Slots Evolved . | . . . Power . | . . . Propulsion . | . . . Utility . | . . . Weapon . | . . . Parts Attached 21 | 6 12 3 Power 1 | 1 . . Engine 1 | 1 . . Core . | . . . Reactor . | . . . Propulsion 6 | 2 4 . Treads 6 | 2 4 . Leg . | . . . Wheel . | . . . Hover . | . . . Flight . | . . . Utility 5 | 1 4 . Device 2 | . 2 . Storage 2 | 1 1 . Processor . | . . . Hackware . | . . . Protection 1 | . 1 . Artifact . | . . . Weapon 9 | 2 4 3 Energy Gun . | . . . Energy Cannon . | . . . Ballistic Gun 5 | 2 3 . Ballistic Cannon . | . . . Launcher . | . . . Special Weapon 1 | . . 1 Impact Weapon 2 | . 1 1 Slashing Weapon . | . . . Piercing Weapon . | . . . Special Melee Weapon 1 | . . 1 Unidentified Prototypes . | . . . Parts Lost 5 | . . 5 Power 1 | . . 1 Propulsion 2 | . . 2 Utility 1 | . . 1 Weapon 1 | . . 1 Highest Loss Streak 3 | . . 3 To Critical Strikes . | . . . Average Slot Usage (%) 96 | . 99 90 Engine 13 | . 14 10 Treads 26 | . 27 22 Device 12 | . 11 13 Storage 14 | . 14 14 Protection 1 | . 2 . Ballistic Gun 14 | . 19 3 Impact Weapon 9 | . 8 12 Special Melee Weapon 3 | . . 10 Naked Turns . | . . . Heaviest Build 19 | 11 19 19 Greatest Support 40 | 40 40 40 Greatest Overweight (x) 4 | . 3 4 Average Overweight (x) . | . . . Largest Inventory Capacity 10 | 8 10 10 Average Capacity 9 | 6 8 10 Most Carried 10 | 3 10 10 Average Carried 8 | 1 7 10 Final Capacity 10 | 8 10 10 Final Carried 10 | 3 10 10 Class Distribution -------------------- 100% | Mutant Dominant Class ---------------- Mutant | -10/Materials Mutant | -10/Subcaves Resources | -11 -10 -10 ----------- Run | Yrd Mat Sub Matter Collected 604 | 254 270 80 Remotely . | . . . Salvage Created 574 | . 442 132 Parts 35 | . 29 6 Haulers Intercepted 1 | . 1 . Recyclers Shooed 1 | . 1 . Parts Field Recycled . | . . . Retrieved Matter . | . . . Parts Self-Destructed 9 | . . 9 Prevented . | . . . Kills | -11 -10 -10 ------- Run | Yrd Mat Sub Combat Hostiles Destroyed 10 | . 7 3 Melee 4 | . 2 2 Guns 5 | . 5 . Classes Destroyed 9 | . 7 2 Worker 1 | . 1 . Hauler 1 | . 1 . Recycler 1 | . 1 . Mechanic 1 | . 1 . Watcher 3 | . 3 . Swarmer 3 | . 3 . Grunt 4 | . 4 . Artisan 1 | . . 1 Subdweller 3 | . . 3 Best Kill Streak 3 | . 3 1 Combat Bots Only 3 | . 3 1 Max Kills in Single Turn 1 | . 1 1 Gunslinging . | . . . Exploded . | . . . Melee 1 | . 1 1 Uniques/NPCs Destroyed . | . . . Combat | -11 -10 -10 -------- Run | Yrd Mat Sub Hostile Shots Fired 66 | . 33 33 Missed 14 | . 5 9 Damage Taken 864 | . 279 585 Core 251 | . 47 204 Absorbed by Shields . | . . . Core Remaining (%) 100 | 100 . . Volleys Fired 29 | . 24 5 Largest 2 | . 2 1 Hottest 46 | . 46 30 Shots Fired 51 | . 46 5 Gun 47 | . 46 1 Cannon . | . . . Launcher . | . . . Special 4 | . . 4 Kinetic 47 | . 46 1 Thermal 4 | . . 4 Explosive . | . . . Electromagnetic . | . . . Robot Hit Streak 10 | . 10 4 Robot Miss Streak 3 | . 3 . Penetration Max . | . . . Secondary Targets 1 | . 1 . Max Gunslinging Chain 1 | . 1 . Shots Hit Robots 58 | . 34 24 Core Hits 18 | . 15 3 Critical Kills 2 | . 1 1 Critical Parts Destroyed 3 | . . 3 Critical Strikes 5 | . 1 4 Smash 5 | . 1 4 Melee Attacks 51 | . 19 32 Impact 45 | . 19 26 Slashing . | . . . Piercing . | . . . Sneak Attacks 3 | . 2 1 Combat Hostiles . | . . . Follow-up Attacks . | . . . Damage Inflicted 1109 | . 652 457 Guns 442 | . 427 15 Cannons . | . . . Explosions . | . . . Melee 667 | . 225 442 Ramming . | . . . Kinetic 442 | . 427 15 Thermal . | . . . Explosive . | . . . Electromagnetic . | . . . Impact 667 | . 225 442 Slashing . | . . . Piercing . | . . . Highest Corruption 2 | . 2 2 Average Corruption 2 | . 2 2 Corruption Purged . | . . . Corruption Blocked . | . . . Effects 9 | . 7 2 Message Errors 3 | . 2 1 Matter Fused 2 | . 1 1 Heat Flow Errors 1 | . 1 . Data Loss (minor) 1 | . 1 . Data Loss (major) 2 | . 2 . Overload Shots . | . . . Overflow Damage 90 | . . 90 Projectiles . | . . . Explosions . | . . . Melee 90 | . . 90 Knockbacks 1 | . . 1 Impact 1 | . . 1 Kinetic . | . . . Secondary . | . . . Self-Inflicted Damage . | . . . Shots . | . . . Rammed . | . . . Targets Rammed . | . . . Kicked . | . . . Crushed . | . . . Highest Temperature 176 | . 176 . Average Temperature 54 | . 54 . Received Heat Transfer 270 | . 108 162 Siege Activations . | . . . Robots Corrupted . | . . . Combat Hostiles . | . . . Parts Fried 1 | . . 1 Impact Corruptions 3 | . . 3 Robots Melted . | . . . Combat Hostiles . | . . . Parts Melted . | . . . Heat Transferred . | . . . Parts Sabotaged . | . . . Parts Stolen . | . . . Parts Stripped . | . . . Power Chain Reactions . | . . . Alert | -11 -10 -10 ------- Run | Yrd Mat Sub Peak Influence 176 | . 176 . Initial . | . . . Average 44 | . 47 . Maximum Alert Level . | . . . Low Security (%) 100 | 100 100 . Level 1 . | . . . Level 2 . | . . . Level 3 . | . . . Level 4 . | . . . Level 5 . | . . . High Security . | . . . Max Security . | . . . Squads Dispatched 2 | . 2 . Investigation 1 | . 1 . Extermination . | . . . Reinforcement 1 | . 1 . Assault . | . . . Garrison . | . . . Intercept . | . . . Searches Triggered . | . . . Construction Impeded . | . . . Haulers Reinforced . | . . . Active Scanning Responses . | . . . Cargo Convoy Interrupts . | . . . Stealth | -11 -10 -10 --------- Run | Yrd Mat Sub Distress Signals . | . . . Communications Jammed . | . . . Distress Signals . | . . . Times Spotted 26 | . 19 7 Peak Tracking Total 4 | . 4 2 Tactical Retreats 3 | . . 3 Traps | -11 -10 -10 ------- Run | Yrd Mat Sub Traps Triggered 4 | . 4 . Indirectly . | . . . Trap Hack Attempts . | . . . Triggered . | . . . Disarmed . | . . . Reprogrammed . | . . . Reused . | . . . Traps Extracted . | . . . Installed . | . . . Triggered 1 | . . 1 Machines | -11 -10 -10 ---------- Run | Yrd Mat Sub Machines Disabled . | . . . Max in Single Turn . | . . . Machines Repaired . | . . . Machines Dismantled . | . . . Machines Sabotaged . | . . . Overloaded Fab Kills . | . . . Hacking | -11 -10 -10 --------- Run | Yrd Mat Sub Machines Accessed 7 | . 7 . Terminals 7 | . 7 . Fabricators . | . . . Repair Stations . | . . . Recycling Units . | . . . Scanalyzers . | . . . Garrison Access . | . . . Total Hacks 23 | . 23 . Successful 14 | . 14 . Failed 8 | . 8 . Catastrophic 1 | . 1 . Database Lockouts 1 | . 1 . Manual 13 | . 13 . Terminals 23 | . 23 . Fabricators . | . . . Repair Stations . | . . . Recycling Units . | . . . Scanalyzers . | . . . Garrison Access . | . . . Terminal Hacks 14 | . 14 . Record 4 | . 4 . Prototype ID Bank 3 | . 3 . Level Access Points 1 | . 1 . Locate Traps 1 | . 1 . Dispatch Records 1 | . 1 . Surveillance Status 1 | . 1 . Hauler Manifests 2 | . 2 . Zone Layout 1 | . 1 . Fabricator Hacks . | . . . Repair Station Hacks . | . . . Recycling Unit Hacks . | . . . Scanalyzer . | . . . Garrison Access Hacks . | . . . Unauthorized Hacks . | . . . Terminals . | . . . Fabricators . | . . . Repair Stations . | . . . Recycling Units . | . . . Scanalyzers . | . . . Garrison Access . | . . . Data Cores Recovered . | . . . Used . | . . . Hacking Detections 7 | . 7 . Full Trace Events . | . . . Feedback Events . | . . . Feedback Blocked . | . . . Robot Schematics Acquired . | . . . Robots Built . | . . . Authchips . | . . . Time . | . . . Total Robot Build Rating . | . . . Part Schematics Acquired . | . . . Parts Built . | . . . Authchips . | . . . Time . | . . . Total Part Build Rating . | . . . Parts Repaired . | . . . Time . | . . . Parts Recycled . | . . . Recycled Matter . | . . . Retrieved Matter . | . . . Retrieved Components . | . . . Parts Scanalyzed . | . . . Part Schematics Acquired . | . . . Parts Damaged . | . . . Bothacking | -11 -10 -10 ------------ Run | Yrd Mat Sub Used RIF Installer . | . . . Robots Hacked 1 | . . 1 Non-combat 1 | . . 1 Combat . | . . . Robot Hacks Applied 1 | . . 1 parse_system 1 | . . 1 Relay Couplers Released . | . . . Fabnet Peak Effective % . | . . . Robots Rewired . | . . . Allies Hacked . | . . . Hacks Repelled . | . . . Allies | -11 -10 -10 -------- Run | Yrd Mat Sub Total Allies . | . . . Largest Group . | . . . Highest-Rated Group . | . . . Highest-Rated Ally . | . . . Total Orders . | . . . Ally Attacks . | . . . Total Damage . | . . . Kills . | . . . Allies Corrupted . | . . . Allies Melted . | . . . Intel | -11 -10 -10 ------- Run | Yrd Mat Sub Robot Analysis Total . | . . . Derelict Logs Recovered . | . . . Drone Launches . | . . . Drone Recoveries . | . . . Exploration | -11 -10 -10 ------------- Run | Yrd Mat Sub Turns Passed 1749 | 72 1186 491 Spaces Moved 893 | 40 632 221 Core 29 | 3 1 25 Treads 864 | 37 631 196 Legs . | . . . Wheels . | . . . Hover . | . . . Flight . | . . . Fastest Speed 50 | 50 160 160 Average Speed 162 | 151 160 170 Slowest Speed 250 | 160 200 250 Overloaded Moves . | . . . Propulsion Burnouts . | . . . Robots Hopped . | . . . Cave-ins Triggered . | . . . Exploration Rate (%) 38 | 4 97 15 Regions Visited 2 Branch Regions 1 Pre-discovered Areas . | . . . Known Exits Taken . | . . . Unknown Exits Taken 2 | 1 1 . Scrap Searched 1 | . . 1 Spaces Dug 9 | . 9 . Terrain Destroyed 9 | . 9 . Melee 9 | . 9 . Projectile . | . . . AOE . | . . . Terrain Rammed . | . . . Walls Destroyed . | . . . Machines Disabled . | . . . Actions | -11 -10 -10 --------- Run | Yrd Mat Sub Total 1062 | 48 732 282 Wait 40 | . 21 19 Move 891 | 39 631 221 Hop . | . . . Pick Up 16 | 3 12 1 Fast Attach 11 | 6 5 . Attach . | . . . Detach 1 | . 1 . Swap 10 | . 7 3 Drop 13 | . 12 1 Fire 29 | . 24 5 Melee 51 | . 19 32 Ram . | . . . Kick . | . . . Crush . | . . . Escape Stasis . | . . . Rewire . | . . . Trap . | . . . Miscellaneous . | . . . Route ------- -11/Scrapyard -10/Materials (discovered 6 exits: *Mat x3 / [*Min x2] / [*Sub]) -10/Subcaves History --------- Turn | Location | Event 14 | -11/Scrapyard | Discovered new exit (range 16) 73 | -11/Scrapyard | Entered Materials 81 | -10/Materials | Identified exit to Materials 317 | -10/Materials | Build established: Mutant 340 | -10/Materials | Discovered new exit (range 9) 461 | -10/Materials | Discovered new exit (range 10) 838 | -10/Materials | Central database locked down 856 | -10/Materials | Discovered new exit (range 15) 1259 | -10/Materials | Entered Subcaves 1366 | -10/Subcaves | A swath of the cavern ceiling suddenly collapsed 1691 | -10/Subcaves | Lost 3 parts (1p2n) 1728 | -10/Subcaves | Core integrity fell below 50% 1749 | -10/Subcaves | Core integrity fell below 20% 1750 | -10/Subcaves | Destroyed by MV-517(R) with Subdweller Beam Cannon Last Messages --------------- 01641_ Lgt. Ion Engine destroyed. 01658_ Lgt. Treads destroyed. 01661_ VI#H=#GK, TGZFXF:5HR#/B,U& R 01662_ H0-VUQ(R) suffers critical hit (Smash). 01662_ Destroyed Disposable Heat Sink. 01662_ H0-VUQ(R) system corrupted by crushing effect. 01663_ H0-VUQ(R) system terminally corrupted. 01663_ Sub. Optics fried. 01714_ UI-C3T(z): "She is not going to be happy we haven't found any suitable candidates yet." 01735_ MV-517(R) knocked back. 01743_ Subatomizers dissect the Corrupted Sub. Monowheel. 01744_ Structural Scanner destroyed. 01746_ Datajack destroyed. 01748_ MV-517(R) suffers critical hit (Smash). 01748_ Destroyed Sub. Monowheel. 01748_ MV-517(R) system corrupted by crushing effect. Map ----- +----------------------------------------------------+ | ?????????????????????????????????????????????????? | | ?????????????????????????????????????????????????? | | ?????????????????????????????????????????????????? | | ?????????????????????????????????????????????????? | | ?????????????????????????????????????????????????? | | ???????????????????????????????????????"?????????? | | ????????????????????????????????????"#" ?????????? | | ???????????????? # ?????????????????### ??? | | ????????????????## ?????????????????## # # | | ????????????????# ??????? ????### "" #### | | ????????????????## ???????? #??### """""#### | | ????????????????## #?????? ##??## """""" | | ???????????????? ##?????? ###### """ | | ?????????????????? #????? ###### " ## | | ??????????????????? ##????## #?## #### | | ??????????????????? ####??## ### # ##### | | ???????????????????? ####### ##### # ###?## | | ??????????????????## ###### ### ###?##% | | ??????????????????### #### ### ####### | | ??????????????????## ### ### # ##### | | ??????????????????## ### #### # ##### | | ??????????????????## #### ### #### ### | | ??????????????????### ##### ###= #### | | ??????????????????## # &&%& #### | | ??????????????????## ########### | | ??????????????????### @ ############### | | ??????????????????#### #R########???????####### | | ???????????????????#############???????????####### | | ????????????????????#########??????????????????### | | ?????????????????????????????????????????????????? | | ?????????????????????????????????????????????????? | | ?????????????????????????????????????????????????? | | ?????????????????????????????????????????????????? | | ?????????????????????????????????????????????????? | | ?????????????????????????????????????????????????? | | ?????????????????????????????????????????????????? | | ?????????????????????????????????????????????????? | | ?????????????????????????????????????????????????? | | ?????????????????????????????????????????????????? | | ?????????????????????????????????????????????????? | | ?????????????????????????????????????????????????? | | ?????????????????????????????????????????????????? | | | | | | | | | | | | | | | | | +----------------------------------------------------+ Best States ------------- Heat Dissipation 25 Energy Generation 10 Energy Capacity 125 Matter Stores 300 Matter Capacity 300 Sight Range 16 Terrain Scan Density 10 Utility Shielding 33 Evasion (%) 40 Recoil Reduction 2 Item Schematics ----------------- None Robot Schematics ------------------ None Fabricated ------------ Nothing Alien Tech Used ----------------- None Achievements -------------- None Challenges ------------ None Game ------ Seed SurgeGyrokineticArmor Manual? 0 Play Time 00:18:41 Cumulative 63.2 hours Start 2024.05.05 @ 19:43:06 End 2024.05.07 @ 18:13:32 Sessions 2 Manual Loads 0 Difficulty Rogue Special Mode None Game No. 92 Rogue 92 Adventurer 0 Explorer 0 Win Type - Total 1 Types 1/0/0/0/0/0/0/0/0 Lore% 31 Gallery% 39 Achievement% 30 Wizard Run 0 Options --------- Layout 1 ASCII 0 Keyboard 1 Movement Numpad Keybinds 0 Fullscreen 1 Font 24/Smallcaps Map View 50x35 Zoom Use 0% Tactical HUD 1 Map Filters NONE Filters NONE Steam 1 RUN: 27eda871-3308-4d78-adb3-b5b68edcaad9